bitfinex-derivatives/quotes_SOLF0:USTF0_20250929
["timestamp","ask_amount","ask_price","bid_price","bid_amount"]
[1759162909856,3.26619459,210.44,210.36,11.8156]
[1759162910058,3.26619459,210.45,210.36,11.8156]
[1759162910358,3.26619459,210.44,210.36,11.8156]
[1759162910560,7.53999459,210.45,210.36,11.8156]
[1759162910751,3.26619459,210.44,210.36,11.8156]
[1759162910956,3.26619459,210.44,210.36,7.54]
[1759162911255,11.08619459,210.43,210.36,7.54]
[1759162911451,3.26619459,210.42,210.36,7.54]
[1759162911854,3.26619459,210.41,210.36,7.54]
[1759162912057,3.26619459,210.42,210.36,7.54]
[1759162912368,3.26619459,210.41,210.34,11.816]
[1759162912564,7.54079459,210.42,210.34,11.816]
[1759162912762,3.26619459,210.41,210.34,11.816]
[1759162913066,3.26619459,210.42,210.34,7.54]
[1759162913362,3.26619459,210.46,210.34,7.54]
[1759162913667,7.54009459,210.45,210.37,4.2752]
[1759162913865,3.26619459,210.44,210.37,4.2752]
[1759162914071,3.26619459,210.43,210.37,4.2752]
[1759162914370,3.26619459,210.44,210.37,4.2752]
[1759162914568,3.26619459,210.43,210.37,4.2752]
[1759162914768,3.26619459,210.44,210.37,4.2752]
[1759162914967,3.26619459,210.43,210.37,4.2752]
[1759162915268,3.26619459,210.44,210.37,4.2752]
[1759162915468,3.26619459,210.43,210.37,4.2752]
[1759162915668,4.2742,210.43,210.34,7.54]
[1759162915868,7.54039459,210.43,210.34,7.54]
[1759162916071,3.26619459,210.42,210.34,7.54]
[1759162916270,4.2742,210.43,210.34,7.54]
[1759162916570,4.2742,210.43,210.36,4.2755]
[1759162917072,3.26619459,210.42,210.36,4.2755]
[1759162917674,3.26619459,210.42,210.38,8.02]
[1759162917973,3.26619459,210.44,210.38,8.02]
[1759162918174,3.26619459,210.43,210.38,12.295]
[1759162918370,3.26619459,210.44,210.35,8.02]
[1759162918673,3.26619459,210.46,210.35,8.02]
[1759162919368,4.2729,210.5,210.4,8.02]
[1759162919570,3.24099363,210.49,210.4,8.02]
[1759162920270,3.24099363,210.49,210.44,4.274]
[1759162920469,3.24099363,210.5,210.44,12.294]
[1759162920667,3.24099363,210.5,210.44,8.02]
[1759162920876,7.78,210.59,210.44,8.02]
[1759162921075,3.24207116,210.58,210.46,8.02]
[1759162921274,3.24207116,210.57,210.49,8.02]
[1759162921575,3.24207116,210.58,210.49,8.02]
[1759162921776,3.24207116,210.6,210.49,8.02]
[1759162922169,3.24207116,210.6,210.53,8.02]
[1759162922574,117.94,210.61,210.53,8.02]
[1759162922880,385.6937,210.67,210.53,8.02]
[1759162922881,319.28,210.67,210.53,8.02]
[1759162923071,3.2419267,210.66,210.53,8.02]
[1759162923378,3.2419267,210.66,210.57,12.2911]
[1759162923982,4.2697,210.65,210.57,12.2911]
[1759162924476,3.2419267,210.66,210.57,12.2911]
[1759162924672,319.28,210.67,210.59,4.2709]
[1759162924879,319.28,210.67,210.57,8.02]
[1759162925380,7.78,210.66,210.51,8.02]
[1759162925674,74.2018,210.64,210.51,8.02]
[1759162926069,115.92,210.63,210.51,8.02]
[1759162926275,4.2707,210.6,210.51,8.02]
[1759162927774,4.2712,210.58,210.51,8.02]
[1759162928383,12.0506,210.61,210.51,8.02]
[1759162928581,7.78,210.61,210.51,8.02]
[1759162929676,4.2711,210.59,210.51,8.02]
[1759162930677,7.78,210.61,210.52,4.2723]
[1759162932178,7.78,210.59,210.47,8.02]
[1759162932885,66.4472,210.56,210.43,319.26]
[1759162933074,7.78,210.55,210.42,8.02]
[1759162933975,12.0519,210.55,210.45,7.6]
[1759162934180,7.78,210.55,210.45,7.6]
[1759162934381,4.2716,210.56,210.48,11.8732]
[1759162934988,4.2716,210.56,210.48,7.6]
[1759162936887,4.2719,210.55,210.48,7.6]
[1759162937581,7.86,210.55,210.43,7.6]
[1759162937781,66.4544,210.54,210.43,7.6]
[1759162937988,11.08677121,210.53,210.43,7.6]
[1759162938177,4.2729,210.5,210.43,7.6]
[1759162938381,7.86,210.53,210.43,7.6]
[1759162938888,33.06,210.56,210.46,11.8735]
[1759162939382,4.2724,210.52,210.46,7.6]
[1759162940087,7.86,210.54,210.46,7.6]
[1759162940789,12.1321,210.54,210.46,7.6]
[1759162941190,12.1321,210.54,210.47,4.2733]
[1759162944380,12.1321,210.54,210.46,7.6]
[1759162944579,4.2723,210.53,210.46,7.6]
[1759162945491,74.3137,210.54,210.42,7.4]
[1759162945693,7.59,210.49,210.37,12.87170878]
[1759162945990,4.2741,210.44,210.37,7.4]
[1759162946591,7.59,210.45,210.37,7.4]
[1759162947393,7.59,210.5,210.37,7.4]
[1759162947584,7.59,210.5,210.37,12.87170878]
[1759162947986,4.2733,210.48,210.41,4.2745]
[1759162948694,4.2733,210.48,210.37,12.87170878]
[1759162948695,4.2736,210.46,210.39,4.275]
[1759162948987,7.59,210.46,210.37,7.4]
[1759162949989,7.59,210.46,210.37,11.6754]
[1759162951591,4.274,210.45,210.37,11.6754]
[1759162951790,7.59,210.46,210.39,4.275]
[1759162952893,7.59,210.47,210.41,4.2745]
[1759162953596,7.59,210.47,210.42,11.6742]
[1759162953791,4.2728,210.5,210.39,7.4]
[1759162953994,7.59,210.51,210.44,4.2739]
[1759162954590,7.59,210.51,210.45,4.2736]
[1759162954896,11.8618,210.55,210.44,7.4]
[1759162955089,7.59,210.55,210.44,7.4]
[1759162955286,7.59,210.55,210.47,4.2733]
[1759162955594,11.8619,210.55,210.47,4.2733]
[1759162955985,7.59,210.55,210.46,7.4]
[1759162956788,7.59,210.55,210.42,12.87170878]
[1759162956988,7.59,210.55,210.43,7.4]
[1759162957189,4.2721,210.54,210.47,4.2732]
[1759162957384,7.59,210.55,210.44,7.4]
[1759162957590,4.2714,210.57,210.5,4.2726]
[1759162957896,7.59,210.59,210.5,4.2726]
[1759162958096,3.22758937,210.58,210.5,4.2726]
[1759162958692,7.59,210.57,210.46,5.47170878]
[1759162958900,3.22758937,210.56,210.46,5.47170878]
[1759162959093,7.59,210.57,210.46,5.47170878]
[1759162959293,3.22889493,210.56,210.46,5.47170878]
[1759162959696,4.2718,210.55,210.47,4.2732]
[1759162960091,3.22889493,210.56,210.46,5.47170878]
[1759162960287,7.59,210.57,210.46,5.47170878]
[1759162960591,7.59,210.57,210.47,7.4]
[1759162960791,7.59,210.57,210.5,4.2728]
[1759162960792,11.8614,210.57,210.5,4.2728]
[1759162961397,11.8614,210.57,210.47,11.6732]
[1759162962003,11.8614,210.57,210.47,7.4]
[1759162963604,11.8614,210.57,210.49,4.2728]
[1759162964102,4.2717,210.56,210.47,7.4]
[1759162964296,7.59,210.57,210.46,4.2734]
[1759162965199,4.2719,210.55,210.47,11.6732]
[1759162965796,4.2719,210.55,210.48,4.273]
[1759162966700,11.8614,210.57,210.49,4.2728]
[1759162966997,74.2497991,210.68,210.47,7.4]
[1759162966998,80.17506139,210.66,210.47,7.4]
[1759162967304,124.15,210.62,210.49,7.4]
[1759162967497,4.2707,210.6,210.52,4.2722]
[1759162968200,4.2711,210.59,210.52,4.2722]
[1759162968905,11.8611,210.59,210.52,4.2722]
[1759162970799,4.2713,210.57,210.49,11.6729]
[1759162971404,4.2713,210.57,210.5,4.2726]
[1759162971802,4.2713,210.57,210.49,7.4]
[1759162972002,11.861,210.59,210.51,4.2724]
[1759162972204,11.861,210.59,210.51,6.49484888]
[1759162974106,4.2706,210.61,210.55,2.22244888]
[1759162974305,8.08,210.63,210.57,2.22244888]
[1759162974506,328.2523423,210.67,210.59,2.22244888]
[1759162975112,8.08,210.67,210.61,2.22244888]
[1759162976012,8.08,210.67,210.61,6.49284888]
[1759162976207,8.08,210.67,210.59,9.75244888]
[1759162977610,4.2696,210.66,210.59,9.75244888]
[1759162979209,4.269,210.69,210.61,2.22244888]
[1759162979411,4.269,210.69,210.62,7.53]
[1759162979714,4.269,210.69,210.63,2.22244888]
[1759162980218,12.3486,210.71,210.63,2.22244888]
[1759162980516,8.08,210.75,210.67,2.22244888]
[1759162981317,4.2679,210.74,210.67,2.22244888]
[1759162982413,2.22244888,210.78,210.69,9.75244888]
[1759162982618,8.08,210.79,210.73,2.22244888]
[1759162982914,125.88,210.84,210.75,2.22244888]
[1759162983113,4.2661,210.83,210.75,2.22244888]
[1759162984318,4.2661,210.83,210.72,11.7983]
[1759162984621,4.2665,210.81,210.72,7.53]
[1759162984815,8.08,210.84,210.72,7.53]
[1759162985706,4.2663,210.82,210.72,7.53]
[1759162985914,8.08,210.84,210.74,5.45926886]
[1759162986114,8.08,210.84,210.75,7.53]
[1759162987310,8.08,210.84,210.7,5.45926886]
[1759162987311,8.08,210.82,210.69,7.53]
[1759162987513,8.08,210.8,210.69,7.53]
[1759162987716,8.08,210.76,210.69,7.53]
[1759162987911,8.08,210.76,210.64,8.81212151]
[1759162988910,4.2677,210.75,210.64,13.08202151]
[1759162990324,8.08,210.81,210.67,7.53]
[1759162990824,8.08,210.81,210.69,7.53]
[1759162990825,4.2669,210.79,210.69,7.53]
[1759162991121,74.4482,210.81,210.69,7.53]
[1759162991316,4.2668,210.8,210.69,7.53]
[1759162991516,74.448,210.81,210.69,7.53]
[1759162991722,8.08,210.81,210.69,7.53]
[1759162991920,4.2669,210.79,210.69,7.53]
[1759162992123,8.08,210.81,210.69,7.53]
[1759162992318,8.08,210.81,210.7,4.2686]
[1759162992517,8.77877298,210.89,210.71,7.53]
[1759162992713,125.8,210.86,210.71,7.53]
[1759162992912,125.8,210.86,210.69,66.4045]
[1759162992913,8.08,210.86,210.75,7.53]
[1759162993327,4.2662,210.83,210.75,7.53]
[1759162994725,7.45,210.82,210.67,39.6]
[1759162995123,7.45,210.8,210.67,7.44]
[1759162996024,7.45,210.8,210.67,66.4113]
[1759162996224,7.45,210.8,210.68,7.44]
[1759162996636,7.45,210.8,210.68,11.7089]
[1759162997326,4.267,210.79,210.7,4.2687]
[1759162998521,7.45,210.8,210.71,4.2683]
[1759162998728,4.2665,210.81,210.72,7.44]
[1759162999022,4.2662,210.83,210.73,4.268]
[1759162999220,7.45,210.84,210.73,4.268]
[1759162999624,4.2667,210.8,210.72,7.44]
[1759163000022,7.45,210.81,210.72,7.44]
[1759163000226,7.45,210.81,210.73,4.268]
[1759163001729,7.45,210.81,210.72,7.44]
[1759163002723,4.2669,210.79,210.72,7.44]
[1759163003126,7.45,210.81,210.72,7.44]
[1759163004133,89.36,210.84,210.75,11.9477]
[1759163004333,12.2758,210.85,210.75,7.68]
[1759163004831,4.266,210.84,210.75,7.68]
[1759163005729,8.01,210.85,210.74,4.2677]
[1759163006432,4.2664,210.82,210.74,4.2677]
[1759163007030,4.2664,210.82,210.73,3.46443078]
[1759163007932,4.2664,210.82,210.75,4.2675]
[1759163008829,4.2659,210.84,210.75,4.2675]
[1759163009026,4.2659,210.84,210.75,11.9475]
[1759163010135,4.2662,210.83,210.75,11.9475]
[1759163010334,8.01,210.85,210.75,7.68]
[1759163010733,4.2666,210.81,210.75,7.68]
[1759163011730,4.266,210.83,210.75,7.68]
[1759163011937,8.01,210.85,210.75,7.68]
[1759163012628,8.01,210.85,210.73,3.46443078]
[1759163012629,12.2757,210.85,210.76,3.46443078]
[1759163012835,117.7,210.88,210.77,7.68]
[1759163013136,12.2749,210.89,210.82,4.2661]
[1759163013840,12.2749,210.89,210.8,11.9466]
[1759163014042,4.2652,210.88,210.8,11.9466]
[1759163014635,4.2652,210.88,210.81,4.2663]
[1759163015040,8.01,210.89,210.8,7.68]
[1759163015248,8.01,210.89,210.8,21.77212101]
[1759163015540,8.01,210.89,210.8,7.68]
[1759163016142,12.2749,210.89,210.82,4.2661]
[1759163016338,8.01,210.93,210.82,3.46443078]
[1759163016645,8.01,210.93,210.83,7.68]
[1759163016843,8.01,210.93,210.85,4.2656]
[1759163016844,12.2741,210.93,210.85,4.2656]
[1759163017140,12.2741,210.93,210.83,7.68]
[1759163017340,117.54,210.94,210.88,4.2649]
[1759163017542,117.54,210.94,210.86,7.68]
[1759163017742,125.55,210.94,210.86,7.68]
[1759163018345,125.55,210.94,210.82,99.34]
[1759163018346,8.01,210.93,210.82,11.14443078]
[1759163018546,8.01,210.93,210.82,7.68]
[1759163019641,12.275,210.89,210.82,7.68]
[1759163020546,8.01,210.87,210.76,7.68]
[1759163021653,4.2662,210.83,210.76,7.68]
[1759163021854,8.01,210.87,210.76,7.68]
[1759163022853,4.266,210.84,210.76,7.68]
[1759163024551,4.266,210.84,210.77,4.267]
[1759163025654,4.266,210.84,210.76,7.68]
[1759163026554,66.3499,210.87,210.76,7.68]
[1759163026749,8.01,210.85,210.74,13.88986219]
[1759163026956,8.01,210.85,210.75,7.68]
[1759163027757,4.2666,210.81,210.75,7.68]
[1759163027958,74.3719,210.83,210.7,7.68]
[1759163028257,4.2668,210.79,210.7,11.9485]
[1759163028760,8.01,210.8,210.7,11.9485]
[1759163029148,4.2674,210.77,210.7,7.68]
[1759163029358,8.01,210.77,210.7,7.68]
[1759163029556,8.01,210.77,210.68,4.269]
[1759163030255,4.2678,210.75,210.67,7.68]
[1759163030457,4.2678,210.75,210.67,22.16927744]
[1759163031161,8.01,210.77,210.67,22.16927744]
[1759163032259,12.2774,210.77,210.68,4.269]
[1759163032457,8.01,210.77,210.68,4.269]
[1759163033159,4.2676,210.76,210.69,11.9487]
[1759163033558,4.2676,210.76,210.69,7.68]
[1759163034860,4.2678,210.75,210.69,7.68]
[1759163038168,4.2678,210.75,210.69,11.9489]
[1759163040770,4.268,210.74,210.69,7.68]
[1759163040971,74.3534,210.76,210.64,7.39]
[1759163041269,74.3639,210.73,210.6,7.39]
[1759163041468,7.97,210.7,210.6,7.39]
[1759163041665,7.97,210.67,210.55,7.39]
[1759163042172,4.2702,210.63,210.55,7.39]
[1759163042674,7.97,210.64,210.56,4.2715]
[1759163043678,12.24,210.64,210.56,4.2715]
[1759163044376,4.2703,210.62,210.55,7.39]
[1759163044571,7.97,210.61,210.5,10.85684291]
[1759163044872,7.97,210.61,210.5,7.39]
[1759163045170,7.97,210.57,210.5,7.39]
[1759163045974,7.97,210.57,210.46,7.39]
[1759163046274,7.97,210.57,210.46,21.6117208]
[1759163046467,7.97,210.57,210.46,7.39]
[1759163046672,7.97,210.57,210.49,4.2728]
[1759163048875,7.97,210.57,210.5,4.2725]
[1759163050173,4.2705,210.61,210.49,66.4665]
[1759163050381,7.97,210.62,210.52,7.39]
[1759163052279,7.97,210.62,210.55,4.2715]
[1759163053280,7.97,210.62,210.55,7.39]
[1759163053481,318.84,210.67,210.56,7.39]
[1759163053680,7.97,210.68,210.63,4.2701]
[1759163054075,125.3,210.69,210.63,4.2701]
[1759163054580,125.3,210.69,210.61,4.2704]
[1759163055683,129.5691,210.69,210.61,4.2704]
[1759163056284,125.3,210.69,210.63,4.2701]
[1759163056473,125.3,210.69,210.59,7.39]
[1759163056474,125.3,210.69,210.62,7.72]
[1759163056676,117.56,210.69,210.62,7.72]
[1759163057583,117.56,210.69,210.65,4.2695]
[1759163057782,117.56,210.69,210.65,11.9895]
[1759163058184,125.3,210.69,210.65,4.2695]
[1759163058682,125.3,210.69,210.62,4.2703]
[1759163059682,125.3,210.69,210.59,4.2707]
[1759163059886,125.3,210.69,210.57,7.72]
[1759163060280,7.74,210.69,210.6,7.72]
[1759163060475,7.74,210.69,210.63,4.2699]
[1759163060885,7.74,210.69,210.6,7.72]
[1759163061888,4.2691,210.68,210.61,4.2704]
[1759163062584,117.56,210.72,210.59,4.2708]
[1759163062585,12.0094,210.67,210.59,4.2708]
[1759163062792,7.74,210.67,210.59,4.2708]
[1759163063586,7.74,210.67,210.6,4.2705]
[1759163063790,7.74,210.67,210.57,7.72]
[1759163064592,7.74,210.67,210.61,4.2703]
[1759163065391,7.74,210.67,210.59,4.2708]
[1759163065587,7.74,210.67,210.57,7.72]
[1759163066182,7.74,210.67,210.61,4.2705]
[1759163066992,4.2687,210.7,210.62,4.2701]
[1759163067295,4.2687,210.7,210.61,9.59059944]
[1759163068291,4.2687,210.7,210.63,2.22059944]
[1759163068595,4.2687,210.7,210.63,6.49049944]
[1759163068893,4.269,210.69,210.63,6.49049944]
[1759163069295,4.269,210.69,210.63,2.22059944]
[1759163069493,4.2692,210.68,210.61,13.86099944]
[1759163069694,12.2192,210.68,210.61,13.86099944]
[1759163070798,7.95,210.68,210.62,4.2702]
[1759163071692,2.22059944,210.71,210.63,4.2699]
[1759163071887,7.95,210.72,210.65,2.22059944]
[1759163072690,7.95,210.72,210.64,7.37]
[1759163072900,4.2688,210.7,210.64,4.2697]
[1759163073096,117.56,210.73,210.66,7.37]
[1759163073300,117.56,210.73,210.67,2.22059944]
[1759163074093,125.51,210.73,210.67,2.22059944]
[1759163074499,125.51,210.73,210.65,2.22059944]
[1759163074803,7.95,210.69,210.65,2.22059944]
[1759163075194,4.2688,210.7,210.65,2.22059944]
[1759163075396,7.95,210.69,210.63,9.59059944]
[1759163076200,7.95,210.69,210.63,13.86059944]
[1759163076998,7.95,210.69,210.64,4.2698]
[1759163077197,7.95,210.69,210.65,7.37]
[1759163077398,4.2688,210.7,210.65,7.37]
[1759163077703,7.95,210.69,210.65,7.37]
[1759163078298,7.95,210.69,210.64,4.2698]
[1759163078497,7.95,210.68,210.51,66.4598]
[1759163078700,2.22059944,210.67,210.59,2.22059944]
[1759163079608,4.2698,210.65,210.59,2.22059944]
[1759163080202,4.27,210.64,210.58,4.271]
[1759163080404,7.95,210.65,210.55,7.37]
[1759163080610,7.95,210.62,210.51,7.37]
[1759163080806,2.22059944,210.61,210.52,2.22059944]
[1759163081501,6.49119944,210.61,210.52,2.22059944]
[1759163081701,4.2706,210.61,210.54,2.22059944]
[1759163081897,7.95,210.62,210.54,2.22059944]
[1759163083311,7.95,210.62,210.53,7.37]
[1759163083618,4.2708,210.6,210.53,11.642]
[1759163083813,7.95,210.62,210.53,7.37]
[1759163085722,4.2708,210.6,210.54,4.2717]
[1759163086618,7.95,210.58,210.5,2.22059944]
[1759163087021,12.2212,210.58,210.51,4.2724]
[1759163088523,4.2714,210.57,210.5,2.22059944]
[1759163089424,4.2714,210.57,210.51,4.2723]
[1759163089727,4.2716,210.56,210.5,2.22059944]
[1759163090023,7.95,210.56,210.48,2.22059944]
[1759163090418,7.95,210.56,210.46,9.59059944]
[1759163090624,2.22059944,210.57,210.46,7.37]
[1759163090625,7.95,210.54,210.46,7.37]
[1759163091524,4.2723,210.53,210.46,7.37]
[1759163092619,4.2723,210.53,210.46,11.6434]
[1759163093726,4.2723,210.53,210.46,13.86399944]
[1759163093926,4.2723,210.53,210.46,11.6434]
[1759163094226,7.95,210.54,210.48,4.2731]
[1759163098333,7.95,210.54,210.46,13.86409944]
[1759163098533,7.95,210.54,210.46,9.59059944]
[1759163099230,7.95,210.54,210.48,4.273]
[1759163099430,6.49239944,210.55,210.48,4.273]
[1759163100232,4.272,210.54,210.48,4.273]
[1759163100435,10.07059944,210.55,210.47,8.05]
[1759163101626,4.2722,210.53,210.47,8.05]
[1759163101932,7.85,210.52,210.44,12.3239]
[1759163102232,2.22059944,210.51,210.44,12.3239]
[1759163102832,2.22059944,210.51,210.44,8.05]
[1759163103533,4.2731,210.49,210.44,8.05]
[1759163103839,7.85,210.48,210.44,8.05]
[1759163104037,7.85,210.48,210.43,4.274]
[1759163104238,7.85,210.48,210.44,8.05]
[1759163104639,4.2724,210.52,210.45,8.05]
[1759163104839,2.22059944,210.58,210.48,8.05]
[1759163105037,2.22059944,210.58,210.49,2.22059944]
[1759163105437,7.85,210.57,210.49,2.22059944]
[1759163106327,12.1214,210.57,210.49,2.22059944]
[1759163106533,12.1214,210.57,210.5,8.05]
[1759163106728,116.12,210.59,210.42,80.67738151]
[1759163106729,7.85,210.55,210.47,2.22059944]
[1759163107132,7.85,210.55,210.48,4.273]
[1759163107336,7.85,210.55,210.49,10.27059944]
[1759163108543,4.2721,210.54,210.49,10.27059944]
[1759163108839,4.2721,210.54,210.5,8.05]
[1759163109838,7.85,210.53,210.46,14.54409944]
[1759163110137,66.442,210.58,210.42,14.18738151]
[1759163110138,10.07059944,210.58,210.49,8.05]
[1759163110937,4.272,210.54,210.48,6.49359944]
[1759163111242,4.272,210.54,210.48,14.54359944]
[1759163111539,10.07059944,210.58,210.48,14.54359944]
[1759163111540,4.2722,210.53,210.48,10.27059944]
[1759163111746,7.85,210.55,210.46,2.22059944]
[1759163112237,7.85,210.55,210.44,8.05]
[1759163112238,7.85,210.51,210.44,12.3239]
[1759163112438,7.85,210.51,210.44,8.05]
[1759163112948,7.85,210.47,210.4,12.3247]
[1759163113139,7.85,210.47,210.4,8.05]
[1759163114345,4.2731,210.49,210.41,4.2744]
[1759163114546,7.87,210.5,210.4,8.05]
[1759163115450,4.2732,210.48,210.4,8.05]
[1759163116144,12.1428,210.5,210.4,8.05]
[1759163116344,7.87,210.5,210.4,8.05]
[1759163116545,4.2733,210.48,210.4,12.3247]
[1759163116945,4.2733,210.48,210.4,8.05]
[1759163117942,7.87,210.5,210.4,11.52450822]
[1759163118138,7.87,210.5,210.41,7.92]
[1759163118348,7.87,210.5,210.41,11.39450822]
[1759163118547,4.2731,210.49,210.42,4.2743]
[1759163118850,7.87,210.5,210.41,11.39450822]
[1759163119045,7.87,210.5,210.41,7.92]
[1759163120549,4.2735,210.47,210.41,7.92]
[1759163121444,12.1435,210.47,210.41,7.92]
[1759163122252,12.1438,210.45,210.41,7.92]
[1759163122453,4.2738,210.45,210.38,4.2751]
[1759163122754,7.87,210.46,210.38,4.2751]
[1759163123048,7.87,210.46,210.39,7.92]
[1759163123853,7.87,210.51,210.39,12.1948]
[1759163124055,8.11,210.51,210.39,12.1948]
[1759163124354,4.2736,210.46,210.39,12.1948]
[1759163124545,8.11,210.47,210.39,7.92]
[1759163125554,4.2739,210.45,210.39,7.92]
[1759163126257,12.3834,210.47,210.39,12.1948]
[1759163126650,8.11,210.47,210.39,12.1948]
[1759163127557,4.2737,210.46,210.39,12.1948]
[1759163127758,4.2737,210.46,210.4,4.2746]
[1759163132262,4.2739,210.45,210.39,7.92]
[1759163132662,8.11,210.47,210.39,7.92]
[1759163133259,4.2736,210.46,210.39,12.1948]
[1759163135566,4.2738,210.45,210.39,12.1948]
[1759163136459,12.3834,210.47,210.4,4.2747]
[1759163136660,12.3834,210.47,210.41,7.58]
[1759163137164,4.2736,210.46,210.41,7.58]
[1759163137364,8.11,210.45,210.41,7.58]
[1759163137659,8.11,210.45,210.4,4.2747]
[1759163137860,8.11,210.45,210.41,7.58]
[1759163138160,8.11,210.55,210.42,7.58]
[1759163138564,8.11,210.55,210.47,7.58]
[1759163139354,8.11,210.55,210.44,7.58]
[1759163140064,8.11,210.55,210.46,3.47450822]
[1759163140263,8.11,210.55,210.47,7.58]
[1759163141664,4.272,210.54,210.47,11.8532]
[1759163142558,74.563,210.54,210.43,7.58]
[1759163142962,4.2728,210.5,210.43,7.58]
[1759163143363,8.11,210.54,210.43,7.58]
[1759163143563,8.11,210.54,210.45,7.58]
[1759163144658,12.382,210.54,210.46,4.2734]
[1759163146068,8.11,210.54,210.47,4.2732]
[1759163146268,63.5715,210.56,210.47,4.2732]
[1759163146269,4.2715,210.56,210.48,7.58]
[1759163147062,4.2715,210.56,210.48,11.8531]
[1759163147363,4.2715,210.56,210.48,7.58]
[1759163150672,4.2715,210.56,210.49,4.2728]
[1759163151371,8.11,210.56,210.44,11.05450822]
[1759163151667,8.11,210.55,210.44,7.58]
[1759163152667,4.2726,210.51,210.44,11.8538]
[1759163154075,4.2729,210.5,210.44,11.8538]
[1759163154770,8.11,210.52,210.44,11.8538]
[1759163154771,4.2731,210.49,210.44,7.58]
[1759163154976,7.98,210.48,210.44,7.58]
[1759163155473,4.2731,210.49,210.43,12.204]
[1759163155670,4.2726,210.51,210.43,7.93]
[1759163156676,4.2726,210.51,210.44,4.2737]
[1759163157170,4.2726,210.51,210.45,7.93]
[1759163157972,7.98,210.52,210.45,12.2036]
[1759163158174,7.98,210.56,210.45,7.93]
[1759163159675,4.272,210.54,210.48,12.203]
[1759163161575,12.252,210.54,210.48,12.203]
[1759163162379,7.98,210.58,210.5,3.47450822]
[1759163162573,125.44,210.62,210.51,7.93]
[1759163163477,74.4118,210.61,210.51,7.93]
[1759163163673,74.4118,210.61,210.45,7.93]
[1759163163674,74.4263,210.56,210.45,7.93]
[1759163163878,7.98,210.53,210.41,7.93]
[1759163165074,4.2733,210.48,210.41,12.2045]
[1759163165279,4.2733,210.48,210.36,15.82126477]
[1759163165280,77.91730822,210.51,210.38,7.93]
[1759163165768,77.91730822,210.51,210.39,4.2748]
[1759163165769,4.2735,210.47,210.39,4.2748]
[1759163165969,7.98,210.48,210.4,3.47450822]
[1759163166171,120.93450822,210.55,210.41,7.93]
[1759163166376,4.2724,210.52,210.45,7.93]
[1759163166575,191.8729,210.54,210.45,7.93]
[1759163166771,191.8729,210.54,210.41,7.93]
[1759163167082,69.93670822,210.51,210.37,11.40450822]
[1759163167477,7.98,210.46,210.38,4.2751]
[1759163167679,7.98,210.46,210.37,11.40450822]
[1759163168285,4.2739,210.45,210.38,4.275]
[1759163168784,7.98,210.46,210.38,4.275]
[1759163169186,7.98,210.46,210.37,7.93]
[1759163169781,4.2739,210.45,210.37,7.93]